bitfinex-derivatives/quotes_BTCF0:USTF0_20250901
["timestamp","ask_amount","ask_price","bid_price","bid_amount"]
[1756755065241,1.53343924,109310.0,109300.0,0.76252855]
[1756755065446,1.53443924,109310.0,109300.0,0.76252855]
[1756755066050,1.23041069,109310.0,109300.0,0.76245755]
[1756755066555,0.39041069,109310.0,109300.0,1.11245755]
[1756755066740,0.86037069,109310.0,109300.0,1.16183194]
[1756755067649,0.86037069,109310.0,109300.0,0.50787439]
[1756755067851,0.86037069,109310.0,109300.0,0.81183194]
[1756755068349,0.84096,109310.0,109300.0,0.81183194]
[1756755068548,0.91407572,109310.0,109300.0,0.81283194]
[1756755070152,0.91407572,109310.0,109300.0,0.50887439]
[1756755070343,1.21803327,109310.0,109300.0,0.45840439]
[1756755070540,1.48741662,109310.0,109300.0,0.3618]
[1756755071755,1.48841662,109310.0,109300.0,0.3608]
[1756755073360,1.84921662,109310.0,109290.0,0.41017439]
[1756755073548,0.30395755,109300.0,109290.0,0.3608]
[1756755073745,0.3233409,109300.0,109290.0,0.3608]
[1756755074649,0.6841409,109300.0,109280.0,0.41017439]
[1756755074858,0.83984,109290.0,109280.0,0.49474439]
[1756755075159,1.1631809,109290.0,109280.0,0.49474439]
[1756755075657,1.1621809,109290.0,109280.0,0.45836439]
[1756755075858,1.46613845,109290.0,109280.0,0.3608]
[1756755076049,1.1621809,109290.0,109280.0,0.3628]
[1756755076248,1.1621809,109290.0,109280.0,0.3638]
[1756755076853,1.1621809,109290.0,109280.0,0.3884]
[1756755077163,1.1621809,109290.0,109280.0,0.41199]
[1756755078360,1.1631809,109290.0,109280.0,0.41199]
[1756755078658,1.1631809,109290.0,109280.0,0.44837]
[1756755082556,1.1631809,109290.0,109280.0,0.41199]
[1756755082759,0.3233409,109290.0,109280.0,0.44837]
[1756755082957,1.14379755,109290.0,109280.0,0.44837]
[1756755088056,0.83984,109290.0,109280.0,0.44837]
[1756755088456,1.14379755,109290.0,109280.0,0.44837]
[1756755088859,0.8398,109290.0,109280.0,0.96594755]
[1756755089466,0.8398,109290.0,109280.0,1.00232755]
[1756755090165,0.8398,109290.0,109280.0,0.69837]
[1756755091469,0.85915735,109290.0,109280.0,0.69837]
[1756755093655,0.85915735,109290.0,109280.0,1.00232755]
[1756755095169,0.85915735,109290.0,109280.0,0.69837]
[1756755098859,0.01935735,109290.0,109280.0,0.44837]
[1756755099166,0.01935735,109290.0,109280.0,1.33232755]
[1756755099363,0.83976,109300.0,109290.0,0.08184]
[1756755099570,0.85921578,109300.0,109290.0,0.74659755]
[1756755101175,0.83976,109300.0,109290.0,0.79597194]
[1756755101873,0.83976,109300.0,109290.0,0.49201439]
[1756755102074,0.83976,109300.0,109290.0,0.79597194]
[1756755104681,0.83976,109300.0,109290.0,0.49201439]
[1756755105773,0.83976,109300.0,109290.0,0.79597194]
[1756755110183,0.83976,109300.0,109290.0,0.80537385]
[1756755110480,0.83976,109300.0,109290.0,0.79597194]
[1756755111380,0.83976,109300.0,109290.0,0.49201439]
[1756755112081,0.83952,109300.0,109290.0,0.49201439]
[1756755115786,0.83952,109300.0,109290.0,0.51201439]
[1756755115987,0.83952,109300.0,109290.0,0.49201439]
[1756755118892,0.37807327,109310.0,109290.0,0.49201439]
[1756755119087,0.39753009,109310.0,109300.0,0.38332]
[1756755119288,1.23697009,109310.0,109300.0,0.38332]
[1756755119894,1.23697009,109310.0,109300.0,0.02252]
[1756755120185,1.23697009,109310.0,109300.0,0.40806]
[1756755120379,1.23697009,109310.0,109300.0,0.44264]
[1756755120791,1.23697009,109310.0,109300.0,0.40806]
[1756755121289,1.23797009,109310.0,109300.0,0.40806]
[1756755121488,1.23797009,109310.0,109300.0,0.3608]
[1756755122392,1.23797009,109310.0,109290.0,0.49201439]
[1756755122787,1.23797009,109310.0,109290.0,0.45743439]
[1756755122992,0.09457254,109310.0,109300.0,0.45714]
[1756755123290,0.93397254,109310.0,109300.0,0.45714]
[1756755123495,1.23793009,109310.0,109300.0,0.04726]
[1756755123894,1.48793009,109310.0,109290.0,0.49201439]
[1756755124095,0.30395755,109300.0,109290.0,0.49201439]
[1756755124292,0.32341437,109300.0,109290.0,0.49201439]
[1756755124593,0.01945682,109300.0,109290.0,0.49201439]
[1756755124789,0.83936,109300.0,109290.0,1.16597194]
[1756755124996,0.85881682,109300.0,109290.0,1.16597194]
[1756755126296,0.85881682,109300.0,109290.0,0.79597194]
[1756755126493,1.16277437,109300.0,109290.0,0.45743439]
[1756755127194,1.41279582,109300.0,109290.0,0.3608]
[1756755127795,1.41279582,109300.0,109290.0,0.02334]
[1756755128300,1.41279582,109300.0,109280.0,0.38414]
[1756755128502,0.30395755,109290.0,109280.0,0.38414]
[1756755128799,0.32343582,109290.0,109280.0,0.40812]
[1756755129100,0.32343582,109290.0,109280.0,0.44448]
[1756755129507,0.32343582,109290.0,109280.0,0.44548]
[1756755129713,0.32343582,109290.0,109280.0,0.44748]
[1756755131112,0.32343582,109290.0,109280.0,0.41112]
[1756755131411,0.32343582,109290.0,109280.0,0.02634]
[1756755131912,0.32343582,109290.0,109280.0,0.05032]
[1756755134915,1.23819337,109290.0,109280.0,0.003]
[1756755136313,1.24019337,109290.0,109270.0,0.39716]
[1756755136516,1.14323755,109280.0,109270.0,0.04732]
[1756755136820,1.16271582,109280.0,109260.0,0.44448]
[1756755137006,0.85875827,109280.0,109270.0,0.08368]
[1756755137211,1.16271582,109280.0,109270.0,0.08368]
[1756755137411,1.16271582,109280.0,109260.0,0.44448]
[1756755137611,0.30395755,109270.0,109260.0,0.77448]
[1756755137925,0.32343582,109270.0,109250.0,0.45846]
[1756755138111,1.14323755,109260.0,109250.0,0.82846]
[1756755138312,1.16271582,109260.0,109250.0,0.82846]
[1756755138519,1.14323755,109260.0,109250.0,0.82846]
[1756755139213,1.1525643,109260.0,109250.0,0.82846]
[1756755139519,1.1525643,109260.0,109250.0,0.46766]
[1756755139717,1.17199746,109260.0,109250.0,0.46766]
[1756755140119,1.17199746,109260.0,109250.0,0.82846]
[1756755140314,0.33271746,109260.0,109250.0,0.82846]
[1756755140510,0.85871316,109260.0,109250.0,0.82846]
[1756755140716,0.83928,109260.0,109250.0,0.82846]
[1756755140915,0.30395755,109280.0,109260.0,0.03636]
[1756755141119,0.32338381,109280.0,109270.0,0.08368]
[1756755141421,1.16270381,109280.0,109270.0,0.08368]
[1756755142516,1.16570381,109280.0,109270.0,0.08368]
[1756755142828,1.16670381,109280.0,109270.0,0.08368]
[1756755143028,1.52750381,109280.0,109270.0,0.08368]
[1756755143321,0.32738381,109280.0,109270.0,0.08368]
[1756755143624,1.16674381,109280.0,109270.0,0.08368]
[1756755144218,0.32738381,109280.0,109270.0,0.08368]
[1756755144416,1.16674381,109280.0,109270.0,0.08368]
[1756755144923,1.16674381,109280.0,109270.0,0.44448]
[1756755145313,0.02342626,109280.0,109270.0,0.44448]
[1756755145520,0.85270494,109280.0,109270.0,0.74843755]
[1756755145724,0.84336,109280.0,109270.0,0.44448]
[1756755146627,0.84336,109280.0,109270.0,1.09843755]
[1756755147026,0.84136,109280.0,109270.0,1.09843755]
[1756755147222,0.84136,109280.0,109270.0,0.79448]
[1756755147729,0.84036,109280.0,109270.0,0.79448]
[1756755152425,0.001,109280.0,109270.0,1.34843755]
[1756755152631,0.84032,109280.0,109270.0,1.34843755]
[1756755153230,0.001,109280.0,109270.0,1.34843755]
[1756755153430,0.001,109280.0,109270.0,1.43995585]
[1756755153732,0.83932,109290.0,109280.0,0.08368]
[1756755153922,0.83932,109290.0,109280.0,1.07843755]
[1756755155728,0.38708011,109310.0,109300.0,0.09787]
[1756755155930,1.27189066,109310.0,109300.0,0.09787]
[1756755156138,1.57584821,109310.0,109300.0,0.45867]
[1756755157236,1.57684821,109310.0,109300.0,0.45867]
[1756755157440,1.26688382,109310.0,109300.0,0.45867]
[1756755157632,1.26688382,109310.0,109300.0,0.76262755]
[1756755157633,0.93688382,109310.0,109300.0,0.76262755]
[1756755158030,0.93688382,109310.0,109300.0,0.45867]
[1756755158340,0.93588382,109310.0,109300.0,0.45867]
[1756755158925,0.93388382,109310.0,109300.0,0.45867]
[1756755161436,0.09456382,109310.0,109300.0,0.45867]
[1756755161635,0.93376382,109310.0,109300.0,0.45867]
[1756755161940,0.93376382,109310.0,109300.0,0.09787]
[1756755162138,0.93376382,109310.0,109300.0,0.45867]
[1756755162335,0.93372382,109310.0,109300.0,0.78867]
[1756755162537,0.93372382,109310.0,109300.0,0.45867]
[1756755163430,0.91427572,109310.0,109300.0,0.45867]
[1756755163636,0.91427572,109310.0,109300.0,0.76262755]
[1756755164647,0.91427572,109310.0,109300.0,1.11262755]
[1756755165650,0.91423572,109310.0,109300.0,1.11262755]
[1756755166143,0.91423572,109310.0,109300.0,0.76262755]
[1756755166445,0.91423572,109310.0,109300.0,1.11262755]
[1756755166640,0.91423572,109310.0,109300.0,0.76262755]
[1756755172236,0.07511572,109310.0,109300.0,1.11262755]
[1756755172440,0.001,109310.0,109300.0,1.36262755]
[1756755173648,0.839,109320.0,109310.0,0.08306]
[1756755173949,0.839,109320.0,109310.0,1.09781755]
[1756755174141,0.83896,109320.0,109310.0,1.09781755]
[1756755175338,1.93412,109330.0,109310.0,1.09781755]
[1756755175648,1.95355061,109330.0,109320.0,0.74781755]
[1756755175850,2.79247061,109330.0,109320.0,0.74781755]
[1756755176348,2.79247061,109330.0,109320.0,0.44386]
[1756755178948,2.79347061,109330.0,109320.0,0.40812]
[1756755179150,2.79347061,109330.0,109320.0,0.44386]
[1756755179351,3.09742816,109330.0,109320.0,0.44386]
[1756755179648,3.09742816,109330.0,109320.0,0.40812]
[1756755179839,3.09642816,109330.0,109320.0,0.44386]
[1756755180041,3.10042816,109330.0,109320.0,0.44386]
[1756755180548,3.10042816,109330.0,109320.0,0.40812]
[1756755180752,3.10043786,109330.0,109320.0,0.44386]
[1756755182051,3.10043786,109330.0,109320.0,0.40812]
[1756755183251,3.10043786,109330.0,109320.0,0.38513]
[1756755183550,3.10043786,109330.0,109320.0,0.40812]
[1756755184150,1.16631786,109330.0,109320.0,0.40812]
[1756755184751,0.86236031,109330.0,109320.0,0.44386]
[1756755185153,0.86236031,109330.0,109320.0,0.74781755]
[1756755186346,0.86216031,109330.0,109320.0,0.74781755]
[1756755187851,0.86216031,109330.0,109320.0,0.44386]
[1756755189548,0.86216031,109330.0,109320.0,1.10781755]
[1756755189549,0.02344031,109330.0,109320.0,1.10781755]
[1756755189748,0.86216031,109330.0,109320.0,1.10781755]
[1756755190453,0.86116031,109330.0,109320.0,1.10781755]
[1756755190651,0.85916031,109330.0,109320.0,1.10781755]
[1756755191249,0.02044031,109330.0,109320.0,1.10781755]
[1756755191451,0.02044031,109330.0,109320.0,1.6617751]
[1756755191756,0.001,109330.0,109320.0,1.71114949]
[1756755191951,0.001,109330.0,109320.0,1.40719194]
[1756755192153,0.83868,109340.0,109330.0,0.0352]
[1756755192361,0.85811707,109340.0,109330.0,1.11868755]
[1756755192860,0.85811707,109340.0,109330.0,0.74868755]
[1756755193455,0.85911707,109340.0,109330.0,0.74868755]
[1756755196858,0.86851299,109340.0,109330.0,0.74868755]
[1756755197656,0.86851299,109340.0,109330.0,0.44473]
[1756755207663,1.17247054,109340.0,109330.0,0.40953]
[1756755208265,1.17247054,109340.0,109330.0,0.44473]
[1756755211264,0.86851299,109340.0,109330.0,0.44473]
[1756755211667,0.02043707,109340.0,109330.0,1.09868755]
[1756755211964,0.85887707,109340.0,109330.0,1.09868755]
[1756755212164,0.83944,109340.0,109330.0,1.14806194]
[1756755213473,0.83844,109340.0,109330.0,1.14806194]
[1756755213967,0.8384,109350.0,109330.0,1.11286194]
[1756755214161,0.01944088,109350.0,109340.0,0.74868755]
[1756755214362,0.85784088,109350.0,109340.0,0.74868755]
[1756755215274,0.86718911,109350.0,109340.0,0.74868755]
[1756755215470,0.85784088,109350.0,109340.0,0.74868755]
[1756755216174,0.85884088,109350.0,109340.0,0.74868755]
[1756755217472,0.02044088,109350.0,109340.0,0.74868755]
[1756755217866,0.85880088,109350.0,109340.0,0.74868755]
[1756755218376,0.02044088,109350.0,109340.0,0.74868755]
[1756755218677,0.85876088,109350.0,109340.0,0.74868755]
[1756755220176,0.02044088,109350.0,109340.0,1.09868755]
[1756755220376,0.85876088,109350.0,109340.0,1.09868755]
[1756755222676,0.85872088,109350.0,109340.0,1.09868755]
[1756755223277,0.83928,109350.0,109340.0,1.09868755]
[1756755223479,0.85869827,109350.0,109340.0,1.09868755]
[1756755224480,0.02041827,109350.0,109340.0,1.09868755]
[1756755224780,0.85869827,109350.0,109340.0,1.09868755]
[1756755225080,0.85869827,109350.0,109340.0,0.74868755]
[1756755225777,1.16265582,109350.0,109340.0,0.44473]
[1756755225977,1.16265582,109350.0,109340.0,0.3608]
[1756755226278,1.16265582,109350.0,109340.0,0.38448]
[1756755226477,1.16265582,109350.0,109340.0,0.40771]
[1756755227670,1.16265582,109350.0,109340.0,0.44322]
[1756755229175,0.85869827,109350.0,109340.0,0.44322]
[1756755229377,1.16265582,109350.0,109340.0,0.44322]
[1756755232981,1.16265582,109350.0,109340.0,0.3608]
[1756755233581,1.16265582,109350.0,109340.0,0.38448]
[1756755233784,1.16265582,109350.0,109340.0,0.40771]
[1756755234183,1.16265582,109350.0,109340.0,0.44322]
[1756755236786,0.85869827,109350.0,109340.0,0.44322]
[1756755237084,1.16265582,109350.0,109340.0,0.44322]
[1756755238385,1.16266651,109350.0,109340.0,0.44322]
[1756755240582,1.16266651,109350.0,109330.0,0.71413194]
[1756755240583,1.71662406,109350.0,109330.0,0.49259439]
[1756755240782,0.85870896,109350.0,109330.0,0.49259439]
[1756755240982,0.30395755,109340.0,109330.0,0.49259439]
[1756755241190,0.32338651,109340.0,109330.0,0.44322]
[1756755241380,0.85746896,109340.0,109330.0,0.44322]
[1756755242887,0.01942896,109340.0,109330.0,1.36717755]
[1756755243081,0.85746896,109340.0,109330.0,1.41655194]
[1756755243284,0.01942896,109340.0,109330.0,1.41655194]
[1756755243478,0.33252555,109360.0,109350.0,0.06055]
[1756755243683,1.34484555,109360.0,109350.0,0.45686]
[1756755245292,1.040888,109360.0,109350.0,0.45686]
[1756755245487,1.34484555,109360.0,109350.0,0.45686]
[1756755245690,1.34784555,109360.0,109350.0,0.45686]
[1756755246193,1.34884533,109360.0,109350.0,0.45686]
[1756755246895,0.64739081,109360.0,109350.0,0.45686]
[1756755247085,1.48539081,109360.0,109350.0,0.45686]
[1756755248795,1.48539081,109360.0,109350.0,0.09606]
[1756755249892,1.49435442,109360.0,109350.0,0.09606]
[1756755250785,1.49431442,109360.0,109350.0,0.08242]
[1756755250990,1.49431442,109360.0,109350.0,0.44322]
[1756755251296,1.49431442,109360.0,109350.0,0.3608]
[1756755251490,1.49431442,109360.0,109340.0,0.4431]
[1756755252695,0.30395755,109350.0,109340.0,0.4431]
[1756755252900,0.32339081,109350.0,109340.0,0.3608]
[1756755253701,0.32339081,109350.0,109340.0,0.38523]
[1756755253896,0.01943326,109350.0,109340.0,0.4431]
[1756755254095,0.01943326,109350.0,109340.0,0.74705755]
[1756755254302,0.85735326,109350.0,109340.0,0.74705755]
[1756755254803,0.85835326,109350.0,109340.0,0.74705755]
[1756755254998,0.02043326,109350.0,109340.0,0.99705755]
[1756755255303,0.85831326,109350.0,109340.0,1.33705755]
[1756755255504,0.85831326,109350.0,109340.0,0.99705755]
[1756755255700,0.85831326,109350.0,109340.0,1.34705755]
[1756755255897,0.02043326,109350.0,109340.0,1.34705755]
[1756755256097,0.85831326,109350.0,109340.0,1.34705755]
[1756755258297,0.85822411,109350.0,109340.0,1.34705755]
[1756755259307,0.85822411,109350.0,109340.0,0.99705755]
[1756755259803,0.85822411,109350.0,109340.0,0.6931]
[1756755266507,0.85822411,109350.0,109340.0,0.4431]
[1756755266711,1.16218166,109350.0,109340.0,0.4431]
[1756755268514,0.85822411,109350.0,109340.0,0.4431]
[1756755276818,1.16218166,109350.0,109340.0,0.4431]
[1756755277425,0.85822411,109350.0,109340.0,0.4431]
[1756755280132,1.16199767,109350.0,109340.0,0.74687356]
[1756755280631,1.16199767,109350.0,109340.0,0.3608]
[1756755280928,1.16199767,109350.0,109340.0,0.38346]
[1756755281128,1.16199767,109350.0,109340.0,0.40791]
[1756755281726,1.16199767,109350.0,109340.0,0.44448]
[1756755282125,1.16199767,109350.0,109340.0,0.08368]
[1756755282333,1.16199767,109350.0,109340.0,0.04711]
[1756755283330,1.16199767,109350.0,109340.0,0.40791]
[1756755283532,1.16199767,109350.0,109340.0,0.04711]
[1756755284932,1.16199767,109350.0,109340.0,0.40791]
[1756755285432,1.16199767,109350.0,109340.0,0.44448]
[1756755285629,0.85822411,109350.0,109340.0,0.44448]
[1756755285826,1.16199767,109350.0,109340.0,0.74825356]
[1756755286427,1.16199767,109350.0,109340.0,0.44448]
[1756755286626,1.16199767,109350.0,109340.0,0.74825356]
[1756755287928,0.85822411,109350.0,109340.0,0.44448]
[1756755288833,1.16199573,109350.0,109340.0,0.44448]
[1756755289537,1.16199573,109350.0,109340.0,0.49385439]
[1756755298937,1.71576735,109350.0,109330.0,0.44674439]
[1756755299243,0.30377162,109340.0,109330.0,0.45728439]
[1756755299440,0.32311573,109340.0,109330.0,0.45728439]
[1756755300234,0.32311573,109340.0,109330.0,0.49385439]
[1756755300441,0.32311573,109340.0,109330.0,0.45728439]
[1756755301142,0.32311573,109340.0,109330.0,0.49385439]
[1756755303036,0.32411573,109340.0,109330.0,0.49385439]
[1756755305840,0.02034411,109340.0,109330.0,0.49385439]
[1756755306042,0.32411573,109340.0,109330.0,0.49385439]
[1756755307746,0.85766411,109340.0,109330.0,0.49385439]
[1756755307949,0.85766411,109340.0,109330.0,1.10762601]
[1756755308154,0.02034411,109340.0,109330.0,1.41138955]
[1756755308339,0.001,109340.0,109330.0,1.36201516]
[1756755309042,0.001,109340.0,109330.0,1.61201516]
[1756755309943,0.83732,109350.0,109330.0,1.30819077]
[1756755310143,0.85664219,109350.0,109340.0,0.79601948]
[1756755310345,0.85664219,109350.0,109340.0,1.15601948]
[1756755310647,0.85664219,109350.0,109340.0,0.49230871]
[1756755310951,0.85664219,109350.0,109340.0,0.79601948]
[1756755311850,0.85764219,109350.0,109340.0,0.79601948]
[1756755312152,0.85764219,109350.0,109340.0,0.49230871]
[1756755312853,0.85764219,109350.0,109340.0,0.44302]
[1756755313452,0.85764219,109350.0,109340.0,0.49230871]
[1756755320058,0.02032219,109350.0,109340.0,0.49230871]
[1756755320260,0.85748219,109350.0,109340.0,1.17601948]
[1756755321360,0.85748219,109350.0,109340.0,1.12673077]
[1756755321863,0.85748219,109350.0,109340.0,1.07673077]
[1756755322458,0.85748219,109350.0,109340.0,1.10673077]
[1756755323164,0.85748219,109350.0,109340.0,0.80302]
[1756755323355,0.85748219,109350.0,109340.0,0.44302]
[1756755330759,0.02032219,109350.0,109340.0,1.06673077]
[1756755331067,0.76200219,109350.0,109340.0,1.06673077]
[1756755331266,0.76200219,109350.0,109340.0,1.07673077]
[1756755331464,0.76200219,109350.0,109340.0,0.44302]
[1756755331663,0.76200219,109350.0,109340.0,1.10673077]
[1756755333962,0.85732219,109350.0,109340.0,1.10673077]
[1756755334866,0.02032219,109350.0,109340.0,1.10673077]
[1756755335064,0.02032219,109350.0,109340.0,1.40601948]
[1756755335258,0.02032512,109350.0,109340.0,1.40601948]
[1756755335663,0.001,109350.0,109340.0,1.40601948]
[1756755336167,0.001,109350.0,109340.0,1.40601111]
[1756755336471,0.83696,109360.0,109350.0,0.09754]
[1756755336663,0.85628258,109360.0,109350.0,1.12205077]
[1756755337468,0.85828258,109360.0,109350.0,1.12205077]
[1756755337867,0.85824258,109360.0,109350.0,1.17133111]
[1756755338868,0.85824258,109360.0,109350.0,0.50762034]
[1756755339261,0.85824258,109360.0,109350.0,0.45834]
[1756755340774,1.16195335,109360.0,109350.0,0.45834]
[1756755345274,0.85824258,109360.0,109350.0,0.45834]
[1756755351096,1.16195335,109360.0,109350.0,0.45834]
[1756755351695,0.85824258,109360.0,109350.0,0.45834]
[1756755352494,0.85808258,109360.0,109350.0,0.80834]
[1756755352684,0.85804258,109360.0,109350.0,1.11205077]
[1756755356198,1.16171153,109360.0,109350.0,1.11200895]
[1756755357602,1.16171153,109360.0,109350.0,0.45834]
[1756755357800,1.16171153,109360.0,109350.0,1.10200895]
[1756755358202,1.16171153,109360.0,109350.0,0.50762034]
[1756755358403,1.16171153,109360.0,109350.0,0.81128929]
[1756755358601,1.16171153,109360.0,109350.0,0.76200895]
[1756755360097,1.16171153,109360.0,109350.0,0.45834]
[1756755360401,1.16171153,109360.0,109350.0,0.81128929]
[1756755361602,1.16171153,109360.0,109350.0,0.76200895]
[1756755363701,0.32499153,109360.0,109350.0,0.76200895]
[1756755363902,1.16159153,109360.0,109350.0,0.76200895]
[1756755364095,0.85792258,109360.0,109350.0,0.76200895]
[1756755364295,1.16159153,109360.0,109350.0,0.76200895]
[1756755364497,1.16159153,109360.0,109350.0,1.12200895]
[1756755365900,0.85788258,109360.0,109350.0,1.12200895]
[1756755367907,0.85588258,109360.0,109350.0,1.12200895]
[1756755369008,0.85788258,109360.0,109350.0,1.12200895]
[1756755369204,0.02132258,109360.0,109350.0,1.12200895]
[1756755369404,0.02132258,109360.0,109350.0,1.4256779]
[1756755369604,0.02132258,109360.0,109350.0,1.12200895]
[1756755369908,0.02132258,109360.0,109350.0,1.17128929]
[1756755370110,0.02132258,109360.0,109350.0,1.12200895]
[1756755371407,0.02132258,109360.0,109350.0,1.17128929]
[1756755371610,0.01932258,109360.0,109350.0,1.17128929]
[1756755372609,0.02132258,109360.0,109350.0,1.17128929]
[1756755374613,0.01932258,109360.0,109350.0,1.47495824]
[1756755375011,0.01932258,109360.0,109350.0,1.17128929]
[1756755375310,0.01932258,109360.0,109350.0,1.48413311]
[1756755375516,0.01932258,109360.0,109350.0,2.01694416]
[1756755377713,0.0748357,109370.0,109350.0,2.32744417]
[1756755378020,0.01946039,109370.0,109360.0,1.10087427]
[1756755378218,0.01946039,109370.0,109360.0,1.41087427]
[1756755379112,0.01946039,109370.0,109360.0,0.80353637]
[1756755379313,0.01946039,109370.0,109360.0,1.41087427]
[1756755379718,2.23734895,109400.0,109390.0,0.08347]
[1756755379910,3.40319764,109400.0,109390.0,0.44427]
[1756755380312,3.40319764,109400.0,109390.0,0.44884]
[1756755380520,3.47491257,109400.0,109390.0,0.44884]
[1756755380711,3.77858152,109400.0,109390.0,0.44884]
[1756755380910,3.78158152,109400.0,109390.0,0.44884]
[1756755381315,3.79065253,109400.0,109390.0,0.44884]
[1756755381511,3.79065253,109400.0,109390.0,0.08804]
[1756755381718,3.79065253,109400.0,109390.0,0.44884]
[1756755382022,3.79465253,109400.0,109390.0,0.08804]
[1756755382523,3.79465253,109400.0,109390.0,0.44884]
[1756755383211,3.79465253,109400.0,109390.0,0.08804]
[1756755384223,3.49083503,109400.0,109390.0,0.08804]
[1756755385520,3.49083503,109400.0,109390.0,0.05195]
[1756755385922,3.49083503,109400.0,109390.0,0.08804]
[1756755386713,3.49083503,109400.0,109390.0,0.05195]
[1756755389224,3.18731463,109400.0,109390.0,0.08804]
[1756755389424,3.49083503,109400.0,109390.0,0.08804]
[1756755390630,3.49083503,109400.0,109390.0,0.05195]
[1756755393735,2.65443503,109400.0,109390.0,0.08804]
[1756755393930,3.49059503,109400.0,109390.0,0.44884]
[1756755394622,3.49055503,109400.0,109390.0,0.44884]
[1756755394821,2.35091463,109400.0,109390.0,0.44884]
[1756755395028,2.87703463,109400.0,109390.0,1.0023604]
[1756755395225,0.09916362,109400.0,109390.0,1.0023604]
[1756755395430,0.77136362,109400.0,109390.0,1.3323604]
[1756755395845,0.77136362,109400.0,109390.0,0.69884]
[1756755396039,0.77136362,109400.0,109390.0,1.3723604]
[1756755405947,0.77136362,109400.0,109390.0,1.37228666]
[1756755406152,0.93508362,109400.0,109390.0,1.37228666]
[1756755406346,0.09916362,109400.0,109390.0,1.37228666]
[1756755406547,0.93508362,109400.0,109390.0,1.37228666]
[1756755406750,0.09916362,109400.0,109390.0,1.37228666]
[1756755406946,0.93508362,109400.0,109390.0,1.37228666]
[1756755408155,1.23853028,109400.0,109390.0,0.69884]
[1756755408349,1.23853028,109400.0,109390.0,1.00228666]
[1756755408746,1.23853028,109400.0,109390.0,0.69884]
[1756755408950,1.54197694,109400.0,109390.0,0.41275]
[1756755409148,1.79197694,109400.0,109390.0,0.00457]
[1756755411443,1.84102428,109400.0,109390.0,0.00457]
[1756755412058,1.53771467,109400.0,109390.0,0.00457]
[1756755413757,1.89851467,109400.0,109390.0,0.00457]
[1756755418156,1.89851467,109400.0,109370.0,0.44434]
[1756755418362,0.30358371,109380.0,109370.0,0.44434]
[1756755418561,1.1588324,109380.0,109370.0,0.44434]
[1756755419161,0.3230324,109380.0,109370.0,0.44434]
[1756755419463,1.1588324,109380.0,109370.0,0.44891]
[1756755420156,0.3230324,109380.0,109370.0,0.44891]
[1756755420358,1.0831524,109380.0,109370.0,0.44891]
[1756755421161,1.0871524,109380.0,109370.0,0.44891]
[1756755429163,0.02344869,109380.0,109370.0,1.11249371]
[1756755429366,0.85916869,109380.0,109370.0,1.36249371]
[1756755429669,0.83972,109380.0,109370.0,1.36249371]
[1756755430169,0.83872,109380.0,109370.0,1.36249371]
[1756755430372,0.003,109380.0,109370.0,1.36249371]
[1756755431561,0.83572,109390.0,109380.0,0.08499]
[1756755431768,0.85517311,109390.0,109380.0,0.44579]
[1756755432472,0.85513311,109390.0,109380.0,0.44579]
[1756755432666,0.01945311,109390.0,109380.0,1.05937371]
[1756755432868,0.85513311,109390.0,109380.0,1.06394371]
[1756755433269,0.85613311,109390.0,109380.0,1.06394371]
[1756755433465,0.02045311,109390.0,109380.0,1.06394371]
[1756755433667,0.02045311,109390.0,109380.0,1.31394371]
[1756755433867,0.001,109390.0,109380.0,1.36318103]
[1756755434368,0.004,109390.0,109380.0,1.36318103]
[1756755435476,0.02345691,109390.0,109380.0,1.36318103]
[1756755435776,0.004,109390.0,109380.0,1.36318103]
[1756755435978,0.02345687,109390.0,109380.0,1.36318103]
[1756755436277,0.02345806,109390.0,109380.0,1.36318103]
[1756755439481,0.02345806,109390.0,109380.0,1.31394371]
[1756755441082,0.02345806,109390.0,109380.0,1.36318103]
[1756755441279,0.004,109390.0,109380.0,1.36318103]
[1756755441484,0.02345816,109390.0,109380.0,1.31394371]
[1756755444981,0.02345816,109390.0,109380.0,1.01036]
[1756755445181,0.02345816,109390.0,109380.0,0.70036]
[1756755445369,0.32704187,109390.0,109380.0,0.45036]
[1756755448678,0.02345816,109390.0,109380.0,0.45036]
[1756755451184,0.32704187,109390.0,109380.0,0.45036]
[1756755453185,0.30758371,109390.0,109380.0,0.45036]
[1756755453388,0.3270455,109390.0,109380.0,0.45036]
[1756755455886,0.5770455,109390.0,109380.0,0.44716]
[1756755457875,0.5770455,109390.0,109380.0,0.05216]
[1756755458283,0.5770455,109390.0,109380.0,0.08636]
[1756755458491,0.02346179,109390.0,109380.0,0.81716]
[1756755458685,0.86678179,109390.0,109380.0,1.12074371]
[1756755458885,0.86718179,109390.0,109380.0,1.13074371]
[1756755459187,0.02346179,109390.0,109380.0,1.38074371]
[1756755460184,0.02346179,109390.0,109380.0,1.07716]
[1756755460693,0.02346179,109390.0,109380.0,1.38074371]
[1756755461380,0.02346179,109390.0,109380.0,1.42998103]
[1756755464898,0.02349585,109390.0,109380.0,1.42998103]
[1756755468301,0.02349585,109390.0,109380.0,1.12639732]
[1756755468597,0.02349585,109390.0,109380.0,1.42998103]
[1756755476115,0.02349585,109390.0,109380.0,1.12639732]
[1756755476616,0.02349585,109390.0,109380.0,1.42998103]
[1756755479316,0.02349585,109390.0,109380.0,1.17998103]
[1756755479810,0.02349585,109390.0,109380.0,0.87639732]
[1756755480317,0.02349585,109390.0,109380.0,1.17998103]
[1756755481011,0.02349585,109390.0,109380.0,1.12998103]
[1756755483819,0.02349585,109390.0,109380.0,0.81639732]
[1756755484031,0.02349585,109390.0,109380.0,1.11998103]
[1756755486325,0.02349585,109390.0,109380.0,0.79998103]
[1756755486523,0.57707956,109390.0,109380.0,0.49639732]
[1756755487426,0.27349585,109390.0,109380.0,0.49639732]
[1756755487728,0.27349585,109390.0,109380.0,1.16998103]
[1756755488925,0.27349585,109390.0,109380.0,1.13998103]
[1756755489420,0.27049585,109390.0,109380.0,1.13998103]
[1756755489721,0.27249585,109390.0,109380.0,1.17998103]
[1756755490530,0.27149585,109390.0,109380.0,1.17998103]
[1756755493230,0.27149585,109390.0,109380.0,0.87639732]
[1756755494531,0.27149585,109390.0,109380.0,1.17998103]
[1756755495620,0.27149585,109390.0,109380.0,0.79998103]
[1756755495826,0.27149585,109390.0,109380.0,1.10998103]
[1756755496230,0.27149585,109390.0,109380.0,0.80639732]
[1756755497645,0.27149585,109390.0,109380.0,1.10998103]
[1756755500032,0.02149585,109390.0,109380.0,1.10998103]
[1756755500229,0.02149585,109390.0,109380.0,2.20234103]
[1756755501130,0.02149585,109390.0,109380.0,2.20334103]
[1756755501330,0.01949585,109390.0,109380.0,2.20334103]
[1756755501531,0.01949585,109390.0,109380.0,2.15410371]